bitfinex-derivatives/quotes_BTCF0:USTF0_20210406
["timestamp","ask_amount","ask_price","bid_price","bid_amount"]
[1617722831517,1.46432482,57733.0,57732.0,0.80132823]
[1617722835221,1.01939435,57733.0,57732.0,0.80132823]
[1617722835720,1.01939435,57733.0,57732.0,1.25153996]
[1617722836222,1.01939435,57733.0,57732.0,0.80132823]
[1617722836421,1.07049435,57733.0,57732.0,0.80132823]
[1617722836621,3.57049435,57733.0,57732.0,0.80132823]
[1617722836924,3.96479916,57733.0,57732.0,0.67480823]
[1617722837123,3.96479916,57733.0,57732.0,0.30673101]
[1617722837124,4.33379806,57733.0,57732.0,0.30673101]
[1617722837523,4.83945286,57733.0,57732.0,0.30673101]
[1617722838125,4.83945286,57733.0,57731.0,0.3069891]
[1617722838927,3.73281529,57732.0,57731.0,0.3069891]
[1617722839127,4.73281529,57732.0,57731.0,0.3020891]
[1617722839328,4.73281529,57732.0,57731.0,0.2803891]
[1617722842035,4.73281529,57732.0,57727.0,0.3683983]
[1617722842432,2.42160658,57728.0,57727.0,0.3683983]
[1617722842732,3.42160658,57728.0,57727.0,0.3683983]
[1617722842934,3.42160658,57728.0,57717.0,0.51166431]
[1617722842935,4.54208833,57728.0,57724.0,0.36840466]
[1617722843534,4.54208833,57728.0,57720.0,0.45027236]
[1617722843535,2.11504605,57727.0,57725.0,0.36831106]
[1617722843833,2.05179462,57726.0,57723.0,0.36791912]
[1617722844332,0.36381165,57724.0,57723.0,0.36791912]
[1617722845339,1.36381165,57724.0,57723.0,0.36791912]
[1617722846036,1.60982548,57724.0,57723.0,0.36791912]
[1617722849137,0.60982548,57724.0,57723.0,0.36791912]
[1617722850139,0.36381165,57724.0,57723.0,0.36791912]
[1617722854049,1.50016165,57724.0,57723.0,0.36791912]
[1617722854448,1.74618063,57724.0,57720.0,0.3677626]
[1617722855051,0.36331732,57721.0,57716.0,0.44948762]
[1617722855449,0.36331732,57721.0,57720.0,0.36792998]
[1617722855850,0.4435889,57722.0,57719.0,0.36793146]
[1617722856250,0.36283454,57720.0,57719.0,0.36793146]
[1617722856652,0.36283454,57720.0,57718.0,0.36794027]
[1617722857151,0.44340607,57721.0,57718.0,0.36794027]
[1617722857152,0.3628239,57719.0,57718.0,0.36794027]
[1617722857653,0.47008045,57719.0,57718.0,0.36794027]
[1617722858553,0.10725655,57719.0,57718.0,0.36794027]
[1617722858953,0.10725655,57719.0,57718.0,0.8176391]
[1617722859753,0.46996765,57719.0,57718.0,0.36794027]
[1617722860755,0.71600667,57719.0,57718.0,0.36794027]
[1617722861155,0.71600667,57719.0,57717.0,0.42947105]
[1617722861156,0.46996765,57719.0,57717.0,0.42947105]
[1617722861657,0.60830771,57718.0,57714.0,0.44972654]
[1617722862662,0.60830771,57718.0,57717.0,0.36795887]
[1617722862959,0.24604033,57718.0,57717.0,0.36795887]
[1617722863658,1.6082026,57718.0,57717.0,0.36795887]
[1617722864463,0.6082026,57718.0,57717.0,0.36795887]
[1617722865766,0.6082026,57718.0,57716.0,0.36780463]
[1617722866366,0.3617795,57717.0,57716.0,0.36780463]
[1617722866770,0.24604319,57717.0,57716.0,0.36780463]
[1617722867171,0.60779356,57718.0,57716.0,0.36780463]
[1617722869773,0.60779356,57718.0,57717.0,0.67408224]
[1617722869972,0.60779356,57718.0,57717.0,0.30640102]
[1617722870175,0.36175009,57718.0,57717.0,0.30640102]
[1617722870375,0.30156854,57718.0,57717.0,0.67407937]
[1617722872175,0.35386854,57718.0,57717.0,0.67407937]
[1617722872376,0.30156854,57718.0,57717.0,0.67407937]
[1617722872976,1.30156854,57718.0,57717.0,0.67407937]
[1617722873280,1.66333538,57718.0,57717.0,0.30640102]
[1617722873776,1.66333538,57718.0,57717.0,0.36791181]
[1617722873777,0.90937853,57718.0,57717.0,0.36791181]
[1617722874177,1.90937853,57718.0,57717.0,0.30640102]
[1617722874378,0.90937853,57718.0,57717.0,0.30640102]
[1617722876181,0.90937853,57718.0,57717.0,0.3679116]
[1617722876583,0.30156854,57718.0,57717.0,0.3679116]
[1617722876984,0.30156854,57718.0,57717.0,0.67408215]
[1617722877900,0.30156854,57718.0,57717.0,0.7813387]
[1617722878586,0.0021159,57718.0,57717.0,1.23108779]
[1617722879084,0.10725655,57719.0,57717.0,1.74212925]
[1617722879486,0.10725655,57719.0,57717.0,1.80362748]
[1617722879786,0.10725655,57719.0,57718.0,1.69680403]
[1617722881388,0.10937668,57719.0,57718.0,1.18577074]
[1617722881786,0.10725655,57719.0,57718.0,1.18577074]
[1617722882288,0.41015558,57719.0,57718.0,1.18577074]
[1617722883087,0.46245558,57719.0,57718.0,1.18577074]
[1617722883288,0.41015558,57719.0,57718.0,1.12427323]
[1617722884291,0.41015558,57719.0,57718.0,0.67456394]
[1617722884692,0.77349986,57719.0,57718.0,0.67456394]
[1617722884894,0.47060083,57719.0,57718.0,0.67456394]
[1617722885094,1.0194383,57719.0,57718.0,0.67456394]
[1617722885796,2.0194383,57719.0,57718.0,0.67456394]
[1617722886496,2.1677983,57719.0,57718.0,0.67456394]
[1617722892403,1.1677983,57719.0,57718.0,0.67456394]
[1617722892603,1.0194383,57719.0,57718.0,0.67456394]
[1617722892904,1.46373373,57719.0,57718.0,0.67456394]
[1617722893102,2.46373373,57719.0,57718.0,0.67456394]
[1617722893302,3.96373373,57719.0,57718.0,0.67456394]
[1617722893906,4.33278086,57719.0,57718.0,0.67456394]
[1617722897404,4.38458086,57719.0,57718.0,0.67456394]
[1617722897904,4.38458086,57719.0,57718.0,0.64766394]
[1617722898105,4.38458086,57719.0,57718.0,0.70917288]
[1617722898305,4.33278086,57719.0,57718.0,0.70917288]
[1617722898506,4.33278086,57719.0,57718.0,0.64766394]
[1617722899209,2.83278086,57719.0,57718.0,0.64766394]
[1617722899508,1.83278086,57719.0,57718.0,0.64766394]
[1617722899907,1.46373373,57719.0,57718.0,0.64766394]
[1617722902911,1.46373373,57719.0,57718.0,1.09829428]
[1617722904012,1.46373373,57719.0,57718.0,1.20555083]
[1617722904813,1.46373373,57719.0,57718.0,1.26705956]
[1617722907316,1.0194383,57719.0,57718.0,1.26705956]
[1617722907515,1.0194383,57719.0,57718.0,1.15980301]
[1617722908117,1.0194383,57719.0,57718.0,1.09829428]
[1617722916623,1.0194383,57719.0,57718.0,1.29829428]
[1617722917024,0.91218175,57719.0,57718.0,1.29829428]
[1617722917227,0.30281288,57719.0,57718.0,2.87169352]
[1617722917423,0.30281288,57719.0,57718.0,2.67169352]
[1617722917628,0.00515408,57719.0,57718.0,2.67169352]
[1617722918524,0.00212314,57720.0,57718.0,2.67169352]
[1617722918725,0.00212314,57720.0,57719.0,1.0]
[1617722919224,0.00212314,57720.0,57719.0,2.33093637]
[1617722919425,0.00212314,57720.0,57719.0,1.33093637]
[1617722920425,0.00212314,57720.0,57719.0,1.26943773]
[1617722920926,0.00515659,57720.0,57719.0,1.26943773]
[1617722921127,0.00515659,57720.0,57719.0,2.26943773]
[1617722921827,0.00515659,57720.0,57719.0,2.33093598]
[1617722923331,0.01021207,57721.0,57719.0,2.89947057]
[1617722923332,0.00212406,57721.0,57719.0,2.89947057]
[1617722923730,0.0021242,57722.0,57721.0,0.2]
[1617722924230,0.00212455,57723.0,57721.0,1.2]
[1617722924531,0.00212455,57723.0,57722.0,1.2]
[1617722924730,0.05705962,57724.0,57722.0,0.2]
[1617722924731,0.05402479,57724.0,57722.0,0.2]
[1617722925031,0.00212479,57724.0,57722.0,2.14181781]
[1617722925331,0.00516071,57726.0,57723.0,1.0]
[1617722925531,0.00516071,57726.0,57724.0,0.2]
[1617722925729,0.00516071,57726.0,57725.0,1.0]
[1617722925931,0.00516071,57726.0,57725.0,4.30355693]
[1617722926129,0.00516071,57726.0,57725.0,3.41081348]
[1617722926331,0.00516071,57726.0,57725.0,4.41081348]
[1617722926533,0.30367224,57728.0,57725.0,4.50305109]
[1617722926534,0.00516303,57728.0,57725.0,4.50305109]
[1617722926734,0.36455036,57733.0,57725.0,3.74556181]
[1617722926932,0.10725655,57736.0,57727.0,1.5]
[1617722927131,0.10725655,57736.0,57728.0,0.2]
[1617722927332,0.4591,57766.0,57729.0,1.5]
[1617722927537,0.4591,57766.0,57735.0,2.12233229]
[1617722927538,0.00514944,57738.0,57735.0,2.12233229]
[1617722927737,0.00514944,57738.0,57735.0,1.12233229]
[1617722927932,0.00515409,57744.0,57741.0,0.44887439]
[1617722928139,0.00515409,57744.0,57743.0,0.10725655]
[1617722928338,0.01020713,57745.0,57743.0,0.78056629]
[1617722928339,0.00515545,57745.0,57743.0,0.78056629]
[1617722928531,0.00515545,57745.0,57744.0,0.2]
[1617722928734,0.11746637,57746.0,57744.0,0.2]
[1617722928735,0.10725655,57746.0,57744.0,1.38362938]
[1617722928932,0.10725655,57746.0,57745.0,1.0]
[1617722929131,0.0051573,57747.0,57745.0,1.0]
[1617722929432,0.00515835,57748.0,57745.0,2.18362971]
[1617722929632,0.00515835,57748.0,57746.0,0.67328247]
[1617722930033,0.00515841,57749.0,57747.0,0.67326422]
[1617722930434,0.00515841,57749.0,57747.0,1.67326422]
[1617722930733,0.00515822,57750.0,57748.0,0.67325856]
[1617722930934,0.00515822,57750.0,57748.0,1.73473636]
[1617722931133,0.00515822,57750.0,57749.0,1.0]
[1617722931534,0.00515822,57750.0,57749.0,1.7347325]
[1617722932233,0.00515822,57750.0,57749.0,1.84198905]
[1617722932434,0.00515797,57751.0,57749.0,1.84198905]
[1617722932736,0.00515939,57753.0,57750.0,1.0]
[1617722933233,0.00515939,57753.0,57752.0,0.67321392]
[1617722933533,0.00515939,57753.0,57752.0,1.67321392]
[1617722933737,0.00515939,57753.0,57752.0,0.73468758]
[1617722934034,0.01021552,57753.0,57752.0,0.73468758]
[1617722934435,0.01021552,57753.0,57752.0,0.67321392]
[1617722935437,0.30353244,57754.0,57752.0,0.67321392]
[1617722935934,0.01021459,57753.0,57751.0,0.06147497]
[1617722936136,0.10725655,57752.0,57751.0,0.06147497]
[1617722936335,0.11747058,57752.0,57751.0,0.06147497]
[1617722936840,0.11241435,57752.0,57751.0,0.73470381]
[1617722937040,0.11241435,57752.0,57751.0,1.73470381]
[1617722937243,0.0051578,57752.0,57751.0,1.73470381]
[1617722937639,0.0051578,57752.0,57751.0,1.93470381]
[1617722937839,0.00515784,57754.0,57751.0,1.93470381]
[1617722938239,0.44509086,57764.0,57751.0,1.93470381]
[1617722938240,0.10725655,57760.0,57753.0,0.2]
[1617722938440,0.00514021,57763.0,57753.0,0.2]
[1617722938742,0.01017964,57764.0,57753.0,0.2]
[1617722938743,0.00514053,57764.0,57755.0,1.0]
[1617722939141,0.00513978,57763.0,57755.0,1.0]
[1617722939442,0.00513978,57763.0,57754.0,1.0]
[1617722939743,0.00513978,57763.0,57755.0,1.0]
[1617722940042,0.00514067,57764.0,57755.0,1.0]
[1617722940242,0.00514067,57764.0,57763.0,0.10725655]
[1617722940443,0.00514067,57764.0,57763.0,0.20758655]
[1617722941143,0.0051419,57765.0,57763.0,0.20758655]
[1617722942447,0.00514249,57766.0,57763.0,0.20758655]
[1617722943849,0.10725655,57767.0,57763.0,0.20758655]
[1617722944248,0.00514518,57768.0,57763.0,0.20758655]
[1617722944850,0.00514518,57768.0,57763.0,1.20758655]
[1617722945049,0.00514844,57772.0,57763.0,1.20758655]
[1617722945250,0.00514844,57772.0,57763.0,1.40758655]
[1617722945451,0.00514896,57773.0,57763.0,1.40758655]
[1617722945650,0.00514896,57773.0,57764.0,1.0]
[1617722945853,0.00514959,57774.0,57764.0,1.0]
[1617722946151,0.00514959,57774.0,57770.0,1.0]
[1617722946450,0.00514959,57774.0,57763.0,0.71227121]
[1617722946451,0.00514959,57774.0,57773.0,0.10725655]
[1617722946951,0.00515151,57776.0,57773.0,0.10725655]
[1617722947654,0.00515151,57776.0,57775.0,1.0]
[1617722947853,0.00515246,57777.0,57775.0,1.12533]
[1617722948154,0.00515317,57778.0,57776.0,1.0]
[1617722948653,0.00515317,57778.0,57775.0,0.12533]
[1617722948654,0.00515317,57778.0,57775.0,1.12533]
[1617722948853,0.00515317,57778.0,57775.0,0.12533]
[1617722949055,0.00514997,57779.0,57775.0,0.12533]
[1617722950160,0.00515137,57780.0,57775.0,0.12533]
[1617722950360,0.00515137,57780.0,57779.0,0.10725655]
[1617722951660,0.10725655,57784.0,57779.0,0.10725655]
[1617722953860,0.10725655,57784.0,57779.0,1.10725655]
[1617722956267,0.10725655,57784.0,57779.0,0.10725655]
[1617722956866,0.10725655,57784.0,57779.0,1.10725655]
[1617722957269,0.10725655,57784.0,57782.0,1.0]
[1617722957469,0.10725655,57784.0,57781.0,1.0]
[1617722957869,0.10725655,57784.0,57779.0,1.10725655]
[1617722958270,0.00513759,57791.0,57779.0,1.10725655]
[1617722958470,0.00513759,57791.0,57790.0,0.22881655]
[1617722959171,0.0051417,57792.0,57790.0,0.22881655]
[1617722959870,0.00514199,57791.0,57790.0,0.22881655]
[1617722960371,0.00514219,57792.0,57790.0,0.22881655]
[1617722963175,0.10725655,57793.0,57790.0,0.22881655]
[1617722964078,0.11239618,57793.0,57790.0,0.22881655]
[1617722964776,0.10725655,57793.0,57790.0,0.22881655]
[1617722965178,0.11239543,57793.0,57790.0,0.22881655]
[1617722966480,0.10725655,57793.0,57790.0,0.22881655]
[1617722972087,0.10725655,57793.0,57791.0,1.0]
[1617722972383,0.10725655,57793.0,57790.0,0.22881655]
[1617722972584,0.10725655,57793.0,57790.0,0.10725655]
[1617722972786,0.20953655,57793.0,57790.0,0.10725655]
[1617722973986,0.10725655,57793.0,57790.0,0.10725655]
[1617722975791,0.3025559,57791.0,57790.0,1.10725655]
[1617722976189,0.3025559,57791.0,57790.0,0.10725655]
[1617722976391,0.3025559,57791.0,57790.0,1.10725655]
[1617722976591,0.01018409,57791.0,57790.0,1.10725655]
[1617722976896,0.11240143,57793.0,57790.0,1.10725655]
[1617722977099,0.11240143,57793.0,57790.0,1.21399655]
[1617722977300,0.11240143,57793.0,57792.0,1.0]
[1617722977494,0.00514673,57795.0,57792.0,1.0]
[1617722977900,0.00514673,57795.0,57793.0,1.0]
[1617722978101,0.3028495,57797.0,57793.0,1.0]
[1617722978102,0.00514795,57797.0,57793.0,1.0]
[1617722978293,0.00514795,57797.0,57794.0,1.0]
[1617722978494,0.00514925,57798.0,57796.0,1.10725655]
[1617722978894,0.00514909,57799.0,57797.0,1.0]
[1617722979293,0.00514909,57799.0,57798.0,1.0]
[1617722979896,0.00514909,57799.0,57796.0,0.10725655]
[1617722979897,0.01019252,57799.0,57796.0,0.10725655]
[1617722980295,0.30274035,57799.0,57796.0,0.10725655]
[1617722980795,0.01018737,57797.0,57796.0,0.10725655]
[1617722981897,0.30269602,57798.0,57796.0,0.10725655]
[1617722982098,0.0101751,57797.0,57796.0,0.10725655]
[1617722984002,0.01015783,57798.0,57796.0,0.10725655]
[1617722984603,0.00512997,57798.0,57796.0,0.10725655]
[1617722986105,0.00512947,57799.0,57796.0,0.10725655]
[1617722986507,0.01015659,57800.0,57796.0,0.10725655]
[1617722986508,0.00512979,57800.0,57796.0,0.10725655]
[1617722987007,0.30270907,57797.0,57796.0,0.10725655]
[1617722987608,0.30270907,57797.0,57796.0,1.10725655]
[1617722987810,0.00514576,57797.0,57796.0,1.10725655]
[1617722990712,0.00514621,57798.0,57796.0,1.10725655]
[1617722991214,0.00514621,57798.0,57796.0,0.10725655]
[1617722991613,0.00514454,57797.0,57796.0,0.10725655]
[1617722992014,0.0101882,57798.0,57796.0,0.10725655]
[1617722993027,0.01018208,57797.0,57796.0,0.10725655]
[1617722993616,0.30243268,57797.0,57796.0,0.10725655]
[1617722994516,0.01018514,57797.0,57796.0,0.10725655]
[1617722995316,0.00514375,57797.0,57796.0,0.10725655]
[1617722995716,0.00514375,57797.0,57796.0,1.10725655]
[1617722996116,0.00514375,57797.0,57796.0,0.10725655]
[1617722996516,0.00514375,57797.0,57796.0,1.10725655]
[1617722997116,0.00514707,57799.0,57796.0,1.10725655]
[1617722997315,0.00514707,57799.0,57796.0,1.22490655]
[1617722997515,0.00514707,57799.0,57798.0,1.0]
[1617722997816,0.01019323,57800.0,57798.0,1.0]
[1617722997817,0.0051388,57800.0,57798.0,1.0]
[1617722998015,0.0051388,57800.0,57797.0,1.0]
[1617722998219,0.30315117,57799.0,57798.0,0.30568404]
[1617722998618,0.36359696,57799.0,57797.0,0.30569105]
[1617722999518,0.36359696,57799.0,57796.0,0.41294793]
[1617722999918,0.30291992,57797.0,57796.0,0.41294793]
[1617723002321,0.30291992,57797.0,57796.0,0.30569138]
[1617723002521,0.13968,57797.0,57774.0,1.0]
[1617723002722,0.13968,57797.0,57779.0,0.10725655]
[1617723002920,0.13968,57797.0,57771.0,1.0]
[1617723003122,0.01018977,57789.0,57788.0,0.36683184]
[1617723003628,0.30270073,57789.0,57788.0,0.30570316]
[1617723003821,1.30270073,57789.0,57788.0,0.30570316]
[1617723004420,0.30270073,57789.0,57788.0,0.30570316]
[1617723004621,1.40995728,57789.0,57788.0,0.30570316]
[1617723004920,1.77320638,57789.0,57787.0,0.30570865]
[1617723005322,0.54835639,57788.0,57786.0,0.30572553]
[1617723005523,1.54835639,57788.0,57786.0,0.30572553]
[1617723005928,1.66536603,57787.0,57784.0,0.30571977]
[1617723006327,1.91114176,57787.0,57783.0,0.30572413]
[1617723007028,0.44777823,57784.0,57782.0,0.30572436]
[1617723007832,1.30230294,57783.0,57782.0,0.30572436]
[1617723008031,0.30230294,57783.0,57782.0,0.30572436]
[1617723008233,1.30230294,57783.0,57782.0,0.30572436]
[1617723008433,0.30230294,57783.0,57782.0,0.30572436]
[1617723008632,0.40955949,57783.0,57782.0,0.30572436]
[1617723011733,1.40955949,57783.0,57782.0,0.30572436]
[1617723011934,1.77249581,57783.0,57782.0,0.30572436]
[1617723013837,1.47019287,57783.0,57782.0,0.30572436]
[1617723014035,1.77244434,57783.0,57782.0,0.30242436]
[1617723014437,1.77244434,57783.0,57778.0,0.36714404]
[1617723014840,0.36241237,57781.0,57778.0,0.36714404]
[1617723015337,0.36243575,57780.0,57778.0,0.36714404]
[1617723016236,0.36235356,57781.0,57778.0,0.36714404]
[1617723016638,0.60817099,57782.0,57779.0,0.36714659]
[1617723017137,1.0,57781.0,57779.0,0.36714659]
[1617723017337,0.60817099,57782.0,57779.0,0.36714659]
[1617723017639,1.0,57781.0,57780.0,0.3671409]
[1617723018039,1.0,57781.0,57780.0,0.42858534]
[1617723018539,1.0,57781.0,57780.0,0.3671409]
[1617723018741,1.0,57781.0,57780.0,0.42858816]
[1617723019243,1.13462,57781.0,57779.0,0.36715757]
[1617723019440,0.13462,57781.0,57779.0,0.36715757]
[1617723019640,0.13462,57781.0,57780.0,0.36721196]
[1617723020443,1.13462,57781.0,57780.0,0.36721196]
[1617723021044,1.13462,57781.0,57779.0,0.36721436]
[1617723021445,1.4968255,57781.0,57779.0,0.36721436]
[1617723021847,0.36221384,57780.0,57778.0,0.36721956]
[1617723022245,1.4968954,57781.0,57778.0,0.36721956]
[1617723022645,1.13462,57781.0,57779.0,0.36716171]
[1617723022845,0.13462,57781.0,57779.0,0.36716171]
[1617723023045,1.0,57780.0,57779.0,0.36716171]
[1617723024548,1.0,57780.0,57778.0,0.3671756]
[1617723025147,1.0,57779.0,57778.0,0.3671756]
[1617723025849,1.0,57779.0,57777.0,0.36718203]
[1617723026650,1.36214806,57779.0,57776.0,0.36718706]
[1617723027254,1.0,57779.0,57777.0,0.36718163]
[1617723027653,1.0,57779.0,57778.0,0.36717957]
[1617723028453,1.0,57779.0,57778.0,0.42863156]
[1617723028953,1.0,57779.0,57778.0,0.36717957]
[1617723029357,1.0,57779.0,57778.0,0.42863209]
[1617723029553,1.0,57780.0,57778.0,0.42863209]
[1617723029754,1.0,57780.0,57778.0,0.36717957]
[1617723029955,0.36224147,57781.0,57778.0,0.36717957]
[1617723030556,1.36231462,57782.0,57779.0,0.36717952]
[1617723030756,1.0,57780.0,57779.0,0.36717952]
[1617723030957,1.14207,57780.0,57779.0,0.06145266]
[1617723031257,1.14207,57780.0,57777.0,0.36721511]
[1617723031258,1.50419704,57780.0,57777.0,0.36721511]
[1617723032658,1.50419704,57780.0,57774.0,0.06145277]
[1617723032659,0.36200808,57779.0,57776.0,0.3672221]
[1617723033159,1.36200808,57779.0,57776.0,0.3672221]
[1617723034059,0.361934,57778.0,57776.0,0.3672221]
[1617723034562,0.361934,57778.0,57775.0,0.36723687]
[1617723034763,0.10725655,57776.0,57775.0,0.36723687]
[1617723035162,0.10725655,57776.0,57774.0,0.06145277]
[1617723035163,0.10725655,57776.0,57774.0,0.42855437]
[1617723035662,0.10725655,57776.0,57775.0,0.06145621]
[1617723036263,0.10725655,57776.0,57774.0,0.3671016]
[1617723036264,0.20830655,57776.0,57774.0,0.42855781]
[1617723036764,0.20830655,57776.0,57775.0,0.36709847]
[1617723037366,0.11738563,57776.0,57775.0,0.36709847]
[1617723038664,0.11738563,57776.0,57773.0,0.4808]
[1617723038665,0.10725655,57776.0,57773.0,0.4808]
[1617723039164,0.00510871,57775.0,57773.0,0.4808]
[1617723039665,0.00510871,57775.0,57774.0,0.36709577]
[1617723040365,0.11236608,57776.0,57774.0,0.36709577]
[1617723040965,0.11236608,57776.0,57775.0,0.36709834]
[1617723041268,0.10725655,57776.0,57775.0,0.42855409]
[1617723041771,0.11736359,57776.0,57775.0,0.36709834]
[1617723043071,0.21265655,57776.0,57773.0,0.4808]
[1617723043571,0.21265655,57776.0,57774.0,0.3670573]
[1617723043772,0.010104,57775.0,57774.0,0.06145652]
[1617723044372,0.010104,57775.0,57774.0,0.73439901]
[1617723044572,1.062704,57775.0,57774.0,0.73439901]
[1617723044888,2.510104,57775.0,57774.0,0.73439901]
[1617723045075,2.5,57775.0,57774.0,0.36733947]
[1617723045277,2.5,57775.0,57770.0,0.36707238]
[1617723045278,2.79988615,57775.0,57773.0,0.30589365]
[1617723045487,0.2,57774.0,57773.0,0.30589365]
[1617723045684,2.7,57774.0,57770.0,0.296206]
[1617723046085,0.35941662,57771.0,57763.0,0.36711489]
[1617723046275,1.5,57770.0,57763.0,0.36711489]
[1617723046586,1.0,57764.0,57756.0,0.44871887]
[1617723046776,0.10725655,57757.0,57756.0,0.44871887]
[1617723047276,0.10725655,57757.0,57741.0,1.04689675]
[1617723047277,0.10725655,57757.0,57753.0,0.44876327]
[1617723047678,0.11234145,57757.0,57752.0,0.44876985]
[1617723048079,0.10725655,57757.0,57753.0,0.44876879]
[1617723048578,1.0,57754.0,57753.0,0.44876879]
[1617723049579,1.0,57754.0,57751.0,0.44876859]
[1617723050080,1.0,57754.0,57753.0,0.06147062]
[1617723050281,1.00508592,57754.0,57752.0,0.06147093]
[1617723050882,0.10725655,57750.0,57749.0,0.4487759]
[1617723051180,0.23875655,57750.0,57749.0,0.4487759]
[1617723051381,0.23875655,57750.0,57741.0,0.4758]
[1617723051382,0.23875655,57750.0,57745.0,0.44882242]
[1617723051882,0.00508017,57748.0,57743.0,0.44882547]
[1617723052283,0.00508017,57748.0,57741.0,0.4758]
[1617723052284,0.00507892,57747.0,57742.0,0.44882849]
[1617723052684,1.0,57743.0,57742.0,0.44882849]
[1617723052887,1.10725655,57743.0,57742.0,0.44882849]
[1617723053786,1.10725655,57743.0,57741.0,0.4758]
[1617723056490,0.10725655,57743.0,57741.0,0.4758]
[1617723056897,0.10725655,57743.0,57742.0,0.22481655]
[1617723058994,0.10725655,57743.0,57742.0,0.10725655]
[1617723068005,0.10725655,57743.0,57742.0,0.55430721]
[1617723068406,0.10725655,57743.0,57742.0,0.10725655]
[1617723071907,0.10725655,57743.0,57742.0,0.47295038]
[1617723072308,0.10725655,57743.0,57742.0,0.10725655]
[1617723073012,1.10725655,57743.0,57736.0,0.3657089]
[1617723073410,0.10725655,57743.0,57736.0,0.3657089]
[1617723073814,1.0,57737.0,57736.0,0.3657089]
[1617723074013,1.10025,57737.0,57733.0,0.42720521]
[1617723074413,1.10025,57737.0,57731.0,0.36573306]
[1617723074913,1.10025,57737.0,57718.0,0.0922259]
[1617723074914,1.10025,57737.0,57728.0,0.36574708]
[1617723075113,0.10725655,57729.0,57728.0,0.36574708]
[1617723075412,0.10725655,57729.0,57727.0,0.36574824]
[1617723075413,1.10725655,57729.0,57727.0,0.36574824]
[1617723075613,1.0,57728.0,57726.0,0.36575155]
[1617723076213,1.0,57728.0,57725.0,0.36575715]
[1617723076713,1.0,57728.0,57727.0,0.3047974]
[1617723077615,1.0,57728.0,57725.0,0.30430198]
[1617723078117,1.0,57728.0,57724.0,0.30430193]
[1617723078517,1.0,57728.0,57722.0,0.30431222]
[1617723078716,1.0,57725.0,57722.0,0.30431222]
[1617723078919,1.0,57723.0,57722.0,0.30431222]
[1617723079118,1.10725655,57723.0,57721.0,0.3043114]
[1617723079618,1.0,57722.0,57721.0,0.3043114]
[1617723080618,1.0,57722.0,57720.0,0.30436769]
[1617723081019,1.0,57722.0,57721.0,0.30436503]
[1617723081423,0.10725655,57723.0,57721.0,0.30436503]
[1617723081619,1.0,57722.0,57721.0,0.30436503]
[1617723087127,1.0,57722.0,57720.0,0.30437365]
[1617723087425,1.0,57721.0,57707.0,0.0077]
[1617723088026,1.0,57721.0,57718.0,0.30440657]
[1617723088027,1.0522,57721.0,57718.0,0.30440657]
[1617723088426,1.0522,57721.0,57715.0,0.30442358]
[1617723088827,1.0522,57721.0,57711.0,0.30397519]
[1617723089027,0.10725655,57712.0,57711.0,0.30397519]
[1617723089227,0.21138655,57712.0,57711.0,0.30397519]
[1617723089829,1.21138655,57712.0,57711.0,0.30397519]
[1617723090529,1.21138655,57712.0,57710.0,0.30398429]
[1617723091132,1.21138655,57712.0,57711.0,0.30438439]
[1617723091934,1.21138655,57712.0,57711.0,0.66964025]
[1617723093936,1.10725655,57712.0,57711.0,0.66964025]
[1617723094135,0.10725655,57712.0,57711.0,0.66964025]
[1617723094540,1.10725655,57712.0,57711.0,0.66964025]
[1617723095740,1.10725655,57712.0,57711.0,0.73114633]
[1617723096442,1.10725655,57712.0,57711.0,0.66964025]
[1617723096740,1.10725655,57712.0,57711.0,0.73114702]
[1617723097145,1.10725655,57712.0,57711.0,0.66964025]
[1617723099645,1.21387655,57712.0,57711.0,0.66964025]
[1617723100144,1.26637655,57712.0,57711.0,0.30438439]
[1617723100344,1.26637655,57712.0,57711.0,0.25168439]
[1617723100646,1.26637655,57712.0,57711.0,0.31319238]
[1617723100843,1.21387655,57712.0,57711.0,0.31319238]
[1617723101045,1.21387655,57712.0,57711.0,0.25168439]
[1617723102043,1.10725655,57712.0,57711.0,1.06650603]
[1617723105447,1.15845655,57712.0,57711.0,1.06650603]
[1617723105647,1.10725655,57712.0,57711.0,1.06650603]
[1617723107151,1.10725655,57712.0,57711.0,1.19401603]
[1617723107849,1.10725655,57712.0,57711.0,1.25552652]
[1617723108550,1.10725655,57712.0,57711.0,1.12801652]
[1617723108850,1.10725655,57712.0,57711.0,0.67986462]
[1617723109452,1.10725655,57712.0,57711.0,0.61835413]
[1617723110554,1.10725655,57712.0,57711.0,0.67986595]
[1617723110754,0.10725655,57712.0,57711.0,0.67986595]
[1617723110960,1.10725655,57712.0,57711.0,0.61835413]
[1617723111855,1.10725655,57712.0,57708.0,0.06151445]
[1617723112256,2.60725655,57712.0,57708.0,0.06151445]
[1617723112458,1.0,57709.0,57708.0,0.06151445]
[1617723113157,1.0,57709.0,57707.0,0.0077]
[1617723114058,2.5,57708.0,57707.0,0.0077]
[1617723114460,2.5,57708.0,57707.0,0.0047]
[1617723115062,2.5519,57708.0,57707.0,0.0047]
[1617723115260,2.5,57708.0,57707.0,0.0047]
[1617723116860,2.5,57708.0,57703.0,0.34514542]
[1617723117261,0.22171655,57704.0,57703.0,0.34514542]
[1617723117461,1.22171655,57704.0,57703.0,0.34514542]
[1617723117961,1.22171655,57704.0,57703.0,0.32804542]
[1617723118163,1.22171655,57704.0,57703.0,0.3895665]
[1617723118763,1.22171655,57704.0,57703.0,0.32804542]
[1617723119062,1.22171655,57704.0,57703.0,0.38956689]
[1617723119565,1.27401655,57704.0,57703.0,0.32804542]
[1617723119966,1.27401655,57704.0,57698.0,0.44812918]
[1617723120467,1.27401655,57704.0,57685.0,0.06152168]
[1617723120468,1.22171655,57704.0,57697.0,0.44817449]
[1617723120866,1.5,57698.0,57697.0,0.44817449]
[1617723121065,2.5,57698.0,57693.0,0.44817161]
[1617723121266,0.18845655,57694.0,57693.0,0.44817161]
[1617723121566,1.5,57693.0,57689.0,0.42210314]
[1617723121866,1.5,57693.0,57680.0,0.50933887]
[1617723122267,1.0,57684.0,57678.0,0.50934204]
[1617723122467,1.12576,57684.0,57678.0,0.50934204]
[1617723122665,1.0,57681.0,57678.0,0.50934204]
[1617723122968,1.0,57679.0,57678.0,0.50934204]
[1617723123367,1.10725655,57679.0,57676.0,0.50935976]
[1617723123767,1.10725655,57679.0,57675.0,0.509363]
[1617723123966,1.0,57678.0,57675.0,0.509363]
[1617723124167,1.10725655,57679.0,57675.0,0.509363]
[1617723124467,1.0,57678.0,57675.0,0.509363]
[1617723124667,0.10725655,57679.0,57675.0,0.509363]
[1617723124668,1.0,57677.0,57675.0,0.509363]
[1617723124866,1.0,57678.0,57675.0,0.509363]
[1617723125066,0.10725655,57679.0,57675.0,0.509363]